fUSD/lending_fUSD_20240714
["ID","MTS","AMOUNT","RATE_DAILY","PERIOD"]
[332059584,1720945848967,-671.59,0.00013753,2]
[332059585,1720945848976,-610.02,0.00013753,2]
[332059586,1720945848986,-1007.2,0.00013753,2]
[332059587,1720945848995,-500.0,0.00013753,2]
[332059588,1720945849005,-891.0,0.00013753,2]
[332059589,1720945849015,-500.0,0.00013753,2]
[332059590,1720945849025,-500.0,0.00013753,2]
[332059591,1720945849035,-500.0,0.00013753,2]
[332059592,1720945849047,-1265.08,0.00013753,2]
[332059593,1720945849057,-657.34,0.00013753,2]
[332059594,1720945849067,-500.0,0.00013753,2]
[332059595,1720945849076,-500.0,0.00013753,2]
[332059596,1720945849086,-571.98,0.00013753,2]
[332059597,1720945849096,-500.0,0.00013753,2]
[332059598,1720945849106,-244.20236047,0.00013753,2]
[332059599,1720945849120,-1093.09,0.00013753,2]
[332059600,1720945849130,-500.0,0.00013753,2]
[332059601,1720945849139,-420.50528451,0.00013753,2]
[332059602,1720945849149,-500.0,0.00013753,2]
[332059603,1720945849160,-500.0,0.00013753,2]
[332059604,1720945849169,-500.0,0.00013753,2]
[332059605,1720945849179,-500.0,0.00013753,2]
[332059606,1720945849191,-631.48762376,0.00013753,2]
[332059607,1720945849201,-736.56,0.00013753,2]
[332059608,1720945849211,-789.89,0.00013753,2]
[332059609,1720945849221,-1053.57,0.00013753,2]
[332059610,1720945849231,-500.0,0.00013753,2]
[332059611,1720945849241,-500.0,0.00013753,2]
[332059612,1720945849250,-690.63,0.00013753,2]
[332059613,1720945849260,-500.0,0.00013753,2]
[332059614,1720945849270,-500.0,0.00013753,2]
[332059616,1720945849280,-500.0,0.00013753,2]
[332059617,1720945849290,-500.0,0.00013753,2]
[332059618,1720945849300,-500.0,0.00013753,2]
[332059619,1720945849310,-500.0,0.00013753,2]
[332059620,1720945849320,-500.0,0.00013753,2]
[332059621,1720945849330,-360.47,0.00013753,2]
[332059622,1720945849340,-554.94,0.00013753,2]
[332059623,1720945849349,-500.0,0.00013753,2]
[332059624,1720945849359,-676.68,0.00013753,2]
[332059625,1720945849369,-500.0,0.00013753,2]
[332059626,1720945849380,-500.0,0.00013753,2]
[332059627,1720945849389,-500.0,0.00013753,2]
[332059628,1720945849399,-979.03,0.00013753,2]
[332059629,1720945849408,-500.0,0.00013753,2]
[332059630,1720945849417,-500.0,0.00013753,2]
[332059631,1720945849427,-500.0,0.00013753,2]
[332059632,1720945849436,-500.0,0.00013753,2]
[332059633,1720945849446,-500.0,0.00013753,2]
[332059634,1720945849455,-500.0,0.00013753,2]
[332059635,1720945849464,-568.64,0.00013753,2]
[332059636,1720945849473,-500.0,0.00013753,2]
[332059637,1720945849483,-500.0,0.00013753,2]
[332059638,1720945849492,-289.60550508,0.00013753,2]
[332059639,1720945849501,-500.0,0.00013753,2]
[332059640,1720945849511,-500.0,0.00013753,2]
[332059641,1720945849520,-656.45,0.00013753,2]
[332059642,1720945849529,-511.98785453,0.00013753,2]
[332059643,1720945849538,-500.0,0.00013753,2]
[332059644,1720945849549,-500.0,0.00013753,2]
[332059645,1720945849558,-500.0,0.00013753,2]
[332059646,1720945849568,-680.97,0.00013753,2]
[332059647,1720945849578,-500.0,0.00013753,2]
[332059648,1720945849587,-207.85,0.00013753,2]
[332059649,1720945849596,-500.0,0.00013753,2]
[332059650,1720945849606,-500.0,0.00013753,2]
[332059651,1720945849615,-406.22,0.00013753,2]
[332059652,1720945849625,-683.99,0.00013753,2]
[332059653,1720945849635,-647.11,0.00013753,2]
[332059654,1720945849645,-553.96,0.00013753,2]
[332059655,1720945849654,-1475.7,0.00013753,2]
[332059656,1720945849663,-500.0,0.00013753,2]
[332059657,1720945849673,-943.52,0.00013753,2]
[332059658,1720945849681,-500.0,0.00013753,2]
[332059659,1720945849691,-709.85,0.00013753,2]
[332059660,1720945849700,-360.3707507,0.00013753,2]
[332059661,1720945849709,-500.0,0.00013753,2]
[332059662,1720945849718,-500.0,0.00013753,2]
[332059663,1720945849728,-500.0,0.00013753,2]
[332059664,1720945849738,-500.0,0.00013753,2]
[332059665,1720945849747,-500.0,0.00013753,2]
[332059666,1720945849756,-500.0,0.00013753,2]
[332059667,1720945849768,-500.0,0.00013753,2]
[332059668,1720945849777,-1320.14,0.00013753,2]
[332059669,1720945849789,-500.0,0.00013753,2]
[332059670,1720945849801,-525.08,0.00013753,2]
[332059671,1720945849810,-500.0,0.00013753,2]
[332059672,1720945849820,-500.0,0.00013753,2]
[332059673,1720945849830,-951.32,0.00013753,2]
[332059674,1720945849840,-500.0,0.00013753,2]
[332059675,1720945849850,-500.0,0.00013753,2]
[332059676,1720945849859,-500.0,0.00013753,2]
[332059677,1720945849870,-500.0,0.00013753,2]
[332059678,1720945849880,-1025.2,0.00013753,2]
[332059679,1720945849889,-500.0,0.00013753,2]
[332059680,1720945849898,-760.15,0.00013753,2]
[332059681,1720945849908,-500.0,0.00013753,2]
[332059682,1720945849917,-500.0,0.00013753,2]
[332059683,1720945849926,-165.57,0.00013753,2]
[332059684,1720945849936,-789.71,0.00013753,2]
[332059685,1720945849945,-500.0,0.00013753,2]
[332059686,1720945849955,-1000.08,0.00013753,2]
[332059687,1720945849965,-672.23,0.00013753,2]
[332059688,1720945849976,-500.0,0.00013753,2]
[332059689,1720945849986,-508.23,0.00013753,2]
[332059690,1720945849996,-500.0,0.00013753,2]
[332059691,1720945850006,-500.0,0.00013753,2]
[332059692,1720945850016,-500.0,0.00013753,2]
[332059693,1720945850026,-1056.91,0.00013753,2]
[332059694,1720945850036,-500.0,0.00013753,2]
[332059695,1720945850050,-1488.64,0.00013753,2]
[332059696,1720945850059,-500.0,0.00013753,2]
[332059697,1720945850068,-500.0,0.00013753,2]
[332059698,1720945850077,-1603.79,0.00013753,2]
[332059699,1720945850086,-500.0,0.00013753,2]
[332059700,1720945850096,-929.23,0.00013753,2]
[332059701,1720945850106,-531.59,0.00013753,2]
[332059702,1720945850119,-500.0,0.00013753,2]
[332059703,1720945850128,-1339.77,0.00013753,2]
[332059704,1720945850139,-615.72,0.00013753,2]
[332059705,1720945850149,-1086.06,0.00013753,2]
[332059706,1720945850159,-921.07,0.00013753,2]
[332059707,1720945850168,-1502.15,0.00013753,2]
[332059708,1720945850178,-500.0,0.00013753,2]
[332059709,1720945850187,-500.0,0.00013753,2]
[332059710,1720945850200,-500.0,0.00013753,2]
[332059711,1720945850209,-500.0,0.00013753,2]
[332059712,1720945850219,-1982.78,0.00013753,2]
[332059713,1720945850228,-711.53,0.00013753,2]
[332059714,1720945850238,-1055.9,0.00013753,2]
[332059715,1720945850247,-613.01,0.00013753,2]
[332059716,1720945850257,-1700.55,0.00013753,2]
[332059717,1720945850266,-500.0,0.00013753,2]
[332059718,1720945850276,-813.56,0.00013753,2]
[332059719,1720945850285,-500.0,0.00013753,2]
[332059720,1720945850296,-500.0,0.00013753,2]
[332059721,1720945850306,-500.0,0.00013753,2]
[332059722,1720945850316,-500.0,0.00013753,2]
[332059723,1720945850325,-500.0,0.00013753,2]
[332059724,1720945850335,-1906.36,0.00013753,2]
[332059725,1720945850344,-500.0,0.00013753,2]
[332059726,1720945850354,-500.0,0.00013753,2]
[332059727,1720945850363,-500.0,0.00013753,2]
[332059728,1720945850373,-1207.43,0.00013753,2]
[332059729,1720945850382,-500.0,0.00013753,2]
[332059730,1720945850392,-500.0,0.00013753,2]
[332059731,1720945850401,-500.0,0.00013753,2]
[332059732,1720945850411,-927.12,0.00013753,2]
[332059733,1720945850421,-364.57,0.00013753,2]
[332059734,1720945850431,-917.92,0.00013753,2]
[332059735,1720945850441,-500.0,0.00013753,2]
[332059736,1720945850450,-500.0,0.00013753,2]
[332059737,1720945850460,-500.0,0.00013753,2]
[332059738,1720945850470,-500.0,0.00013753,2]
[332059739,1720945850479,-536.48,0.00013753,2]
[332059740,1720945850489,-500.0,0.00013753,2]
[332059741,1720945850498,-578.29,0.00013753,2]
[332059742,1720945850508,-500.0,0.00013753,2]
[332059743,1720945850518,-772.89,0.00013753,2]
[332059744,1720945850527,-1011.75864572,0.00013753,2]
[332059745,1720945851432,-104.41135428,0.00013753,2]
[332059746,1720945851442,-500.0,0.00013753,2]
[332059747,1720945851454,-591.99,0.00013753,2]
[332059748,1720945851463,-500.0,0.00013753,2]
[332059749,1720945851474,-500.0,0.00013753,2]
[332059750,1720945851483,-237.72395378,0.00013753,2]
[332059751,1720945851495,-329.68604622,0.00013753,2]
[332059752,1720945851505,-500.0,0.00013753,2]
[332059753,1720945851514,-864.05,0.00013753,2]
[332059754,1720945851523,-621.74,0.00013753,2]
[332059755,1720945851533,-500.0,0.00013753,2]
[332059756,1720945851542,-500.0,0.00013753,2]
[332059757,1720945851552,-324.57,0.00013753,2]
[332059758,1720945851562,-584.67,0.00013753,2]
[332059759,1720945851571,-500.0,0.00013753,2]
[332059760,1720945851580,-500.0,0.00013753,2]
[332059761,1720945851589,-794.19,0.00013753,2]
[332059762,1720945851598,-500.0,0.00013753,2]
[332059763,1720945851608,-827.69,0.00013753,2]
[332059764,1720945851618,-959.37,0.00013753,2]
[332059765,1720945851627,-500.0,0.00013753,2]
[332059766,1720945851638,-1279.46,0.00013753,2]
[332059767,1720945851648,-549.22,0.00013753,2]
[332059768,1720945851659,-500.0,0.00013753,2]
[332059769,1720945851670,-510.38,0.00013753,2]
[332059770,1720945851681,-649.77,0.00013753,2]
[332059771,1720945851691,-1211.93,0.00013753,2]
[332059772,1720945851702,-552.09997471,0.00013753,2]
[332059773,1720945851720,-315.10002529,0.00013753,2]
[332059774,1720945851731,-1267.99,0.00013753,2]
[332059775,1720945851741,-500.0,0.00013753,2]
[332059776,1720945851751,-687.46,0.00013753,2]
[332059777,1720945851762,-734.31202042,0.00013753,2]
[332059778,1720945852140,-500.0,0.00013698,2]
[332059779,1720945852150,-105.49,0.00013753,2]
[332059780,1720945852425,-18.63797958,0.00013753,2]
[332059781,1720945852435,-1103.29,0.00013753,2]
[332059782,1720945852445,-892.06,0.00013753,2]
[332059783,1720945852454,-500.0,0.00013753,2]
[332059784,1720945852464,-500.0,0.00013753,2]
[332059785,1720945852474,-1111.47,0.00013753,2]
[332059786,1720945852484,-500.0,0.00013753,2]
[332059787,1720945852495,-845.81,0.00013753,2]
[332059788,1720945852504,-500.0,0.00013753,2]
[332059789,1720945852515,-500.0,0.00013753,2]
[332059790,1720945852525,-500.0,0.00013753,2]
[332059791,1720945852535,-1036.59,0.00013753,2]
[332059792,1720945852546,-200.0,0.00013753,7]
[332059793,1720945852555,-500.0,0.00013753,2]
[332059794,1720945852565,-500.0,0.00013753,2]
[332059795,1720945852575,-500.0,0.00013753,2]
[332059796,1720945852586,-500.0,0.00013753,2]
[332059797,1720945852596,-1378.37,0.00013753,2]
[332059798,1720945852605,-1099.57,0.00013753,2]
[332059799,1720945852615,-958.82,0.00013753,2]
[332059800,1720945852626,-500.0,0.00013753,2]
[332059801,1720945852635,-638.43,0.00013753,2]
[332059802,1720945852644,-500.0,0.00013753,2]
[332059803,1720945852655,-500.0,0.00013753,2]
[332059804,1720945852664,-1048.03,0.00013753,2]
[332059805,1720945852674,-500.0,0.00013753,2]
[332059806,1720945852683,-500.0,0.00013753,2]
[332059807,1720945852692,-550.72,0.00013753,2]
[332059808,1720945852702,-1435.33,0.00013753,2]
[332059809,1720945852711,-519.37596347,0.00013753,2]
[332059810,1720945852720,-1325.52,0.00013753,2]
[332059811,1720945852729,-500.0,0.00013753,2]
[332059812,1720945852739,-500.0,0.00013753,2]
[332059813,1720945852748,-1307.81,0.00013753,2]
[332059814,1720945852758,-1853.91,0.00013753,2]
[332059815,1720945852767,-558.64528621,0.00013753,2]
[332059816,1720945852777,-642.51,0.00013753,2]
[332059817,1720945852786,-1032.5,0.00013753,2]
[332059818,1720945852796,-361.99976313,0.00013753,2]
[332059819,1720945852806,-500.0,0.00013753,2]
[332059820,1720945852816,-500.0,0.00013753,2]
[332059821,1720945852825,-500.0,0.00013753,2]
[332059822,1720945852834,-1412.35,0.00013753,2]
[332059823,1720945852844,-875.68,0.00013753,2]
[332059824,1720945852854,-618.97,0.00013753,2]
[332059825,1720945852864,-1900.93,0.00013753,2]
[332059826,1720945852873,-500.0,0.00013753,2]
[332059827,1720945852883,-501.8,0.00013753,2]
[332059828,1720945852892,-890.0,0.00013753,2]
[332059829,1720945852902,-1145.5,0.00013753,2]
[332059830,1720945852911,-739.14,0.00013753,2]
[332059831,1720945852921,-1104.3,0.00013753,2]
[332059832,1720945852931,-622.23,0.00013753,2]
[332059833,1720945852941,-890.43690281,0.00013753,2]
[332059834,1720945852959,-92.05309719,0.00013753,2]
[332059835,1720945852968,-500.0,0.00013753,2]
[332059836,1720945852978,-500.0,0.00013753,2]
[332059837,1720945852987,-619.61,0.00013753,2]
[332059838,1720945852998,-663.05,0.00013753,2]
[332059839,1720945853008,-500.0,0.00013753,2]
[332059840,1720945853017,-903.8,0.00013753,2]
[332059841,1720945853028,-1805.08,0.00013753,2]
[332059842,1720945853037,-271.7402569,0.00013753,2]
[332059843,1720945853048,-500.0,0.00013753,2]
[332059844,1720945853059,-1590.43,0.00013753,2]
[332059845,1720945853068,-500.0,0.00013753,2]
[332059846,1720945853078,-500.0,0.00013753,2]
[332059847,1720945853088,-304.70592973,0.00013753,2]
[332059848,1720945853097,-500.0,0.00013753,2]
[332059849,1720945853107,-500.0,0.00013753,2]
[332059850,1720945853119,-500.0,0.00013753,2]
[332059851,1720945853130,-676.74,0.00013753,2]
[332059852,1720945853140,-1119.64,0.00013753,2]
[332059853,1720945853150,-500.0,0.00013753,2]
[332059854,1720945853161,-732.31,0.00013753,2]
[332059855,1720945853172,-500.0,0.00013753,2]
[332059856,1720945853182,-500.0,0.00013753,2]
[332059857,1720945853192,-805.14,0.00013753,2]
[332059858,1720945853202,-554.5,0.00013753,2]
[332059859,1720945853212,-500.0,0.00013753,2]
[332059860,1720945853223,-715.7,0.00013753,2]
[332059861,1720945853232,-500.0,0.00013753,2]
[332059862,1720945853242,-525.42,0.00013753,2]
[332059863,1720945853252,-500.0,0.00013753,2]
[332059864,1720945853261,-500.0,0.00013753,2]
[332059865,1720945853271,-633.22,0.00013753,2]
[332059866,1720945853281,-500.0,0.00013753,2]
[332059867,1720945853290,-1800.35,0.00013753,2]
[332059868,1720945853303,-500.0,0.00013753,2]
[332059869,1720945853313,-500.0,0.00013753,2]
[332059870,1720945853322,-500.0,0.00013753,2]
[332059871,1720945853331,-500.0,0.00013753,2]
[332059872,1720945853340,-1280.7,0.00013753,2]
[332059873,1720945853350,-500.0,0.00013753,2]
[332059874,1720945853360,-540.99,0.00013753,2]
[332059875,1720945853370,-500.0,0.00013753,2]
[332059876,1720945853380,-500.0,0.00013753,2]
[332059877,1720945853390,-500.0,0.00013753,2]
[332059878,1720945853400,-500.0,0.00013753,2]
[332059879,1720945853409,-500.0,0.00013753,2]
[332059880,1720945853419,-1339.14,0.00013753,2]
[332059881,1720945853428,-500.0,0.00013753,2]
[332059882,1720945853438,-907.85,0.00013753,2]
[332059883,1720945853447,-500.0,0.00013753,2]
[332059884,1720945853456,-500.0,0.00013753,2]
[332059885,1720945853466,-516.22706798,0.00013753,2]
[332059886,1720945853477,-500.0,0.00013753,2]
[332059887,1720945853486,-800.1,0.00013753,2]
[332059888,1720945853496,-500.0,0.00013753,2]
[332059889,1720945853505,-789.51,0.00013753,2]
[332059890,1720945853515,-1185.06,0.00013753,2]
[332059891,1720945853525,-1088.42,0.00013753,2]
[332059892,1720945853534,-500.0,0.00013753,2]
[332059893,1720945853545,-500.0,0.00013753,2]
[332059894,1720945853555,-551.54,0.00013753,2]
[332059895,1720945853564,-500.0,0.00013753,2]
[332059896,1720945853575,-946.23,0.00013753,2]
[332059897,1720945853585,-295.59394955,0.00013753,2]
[332059898,1720945853595,-500.0,0.00013753,2]
[332059899,1720945853604,-1115.48,0.00013753,2]
[332059900,1720945853614,-500.0,0.00013753,2]
[332059901,1720945853624,-505.78,0.00013753,2]
[332059902,1720945853634,-205.66642479,0.00013753,2]
[332059903,1720945853643,-539.94,0.00013753,2]
[332059904,1720945853652,-500.0,0.00013753,2]
[332059905,1720945853662,-573.78,0.00013753,2]
[332059906,1720945853672,-990.12,0.00013753,2]
[332059907,1720945853682,-500.0,0.00013753,2]
[332059908,1720945853691,-1217.76,0.00013753,2]
[332059909,1720945853700,-500.0,0.00013753,2]
[332059910,1720945853710,-995.16,0.00013753,2]
[332059911,1720945853719,-392.23357694,0.00013753,2]
[332059912,1720945853728,-500.0,0.00013753,2]
[332059913,1720945853738,-996.59,0.00013753,2]
[332059914,1720945853747,-500.0,0.00013753,2]
[332059915,1720945853756,-500.0,0.00013753,2]
[332059916,1720945853766,-500.0,0.00013753,2]
[332059917,1720945853775,-543.3,0.00013753,2]
[332059918,1720945853785,-500.0,0.00013753,2]
[332059919,1720945853795,-500.0,0.00013753,2]
[332059920,1720945853804,-1179.51,0.00013753,2]
[332059921,1720945853814,-1286.87,0.00013753,2]
[332059922,1720945853823,-500.0,0.00013753,2]
[332059923,1720945853833,-1044.22,0.00013753,2]
[332059924,1720945853842,-711.9,0.00013753,2]
[332059925,1720945853852,-500.0,0.00013753,2]
[332059926,1720945853861,-716.83,0.00013753,2]
[332059927,1720945853871,-805.24,0.00013753,2]
[332059928,1720945853880,-500.0,0.00013753,2]
[332059929,1720945853890,-1067.18,0.00013753,2]
[332059930,1720945853899,-500.0,0.00013753,2]
[332059931,1720945853909,-942.94,0.00013753,2]
[332059932,1720945853918,-646.5,0.00013753,2]
[332059933,1720945853927,-500.0,0.00013753,2]
[332059934,1720945853936,-500.0,0.00013753,2]
[332059935,1720945853946,-1088.73,0.00013753,2]
[332059936,1720945853955,-500.0,0.00013753,2]
[332059937,1720945853965,-500.0,0.00013753,2]
[332059938,1720945853975,-500.0,0.00013753,2]
[332059939,1720945853987,-500.0,0.00013753,2]
[332059940,1720945853998,-950.1,0.00013753,2]
[332059941,1720945854007,-742.67,0.00013753,2]
[332059942,1720945854016,-558.78,0.00013753,2]
[332059943,1720945854026,-622.2,0.00013753,2]
[332059944,1720945854035,-500.0,0.00013753,2]
[332059945,1720945854045,-220.48801847,0.00013753,2]
[332059946,1720945854055,-500.0,0.00013753,2]
[332059947,1720945854064,-1685.62,0.00013753,2]
[332059948,1720945854073,-986.12,0.00013753,2]
[332059949,1720945854082,-95.49924831,0.00013753,2]
[332059950,1720945854732,-404.50075169,0.00013753,2]
[332059951,1720945854742,-551.2,0.00013753,2]
[332059952,1720945854752,-569.17,0.00013753,2]
[332059953,1720945854761,-500.0,0.00013753,2]
[332059954,1720945854771,-568.04,0.00013753,2]
[332059955,1720945854780,-582.91,0.00013753,2]
[332059956,1720945854789,-500.0,0.00013753,2]
[332059957,1720945854799,-664.93,0.00013753,2]
[332059958,1720945854807,-789.11,0.00013753,2]
[332059959,1720945854817,-847.34,0.00013753,2]
[332059960,1720945854826,-500.0,0.00013753,2]
[332059961,1720945854835,-500.0,0.00013753,2]
[332059962,1720945854844,-1109.91,0.00013753,2]
[332059963,1720945854854,-500.0,0.00013753,2]
[332059964,1720945854863,-500.0,0.00013753,2]
[332059965,1720945854874,-500.0,0.00013753,2]
[332059966,1720945854885,-500.0,0.00013753,2]
[332059967,1720945854894,-760.37,0.00013753,2]
[332059968,1720945854904,-500.0,0.00013753,2]
[332059969,1720945854915,-182.82,0.00013753,2]
[332059970,1720945854925,-500.0,0.00013753,2]
[332059971,1720945854935,-815.27,0.00013753,2]
[332059972,1720945854947,-500.0,0.00013753,2]
[332059973,1720945854958,-500.0,0.00013753,2]
[332059974,1720945854969,-522.39,0.00013753,2]
[332059975,1720945854979,-828.3,0.00013753,2]
[332059976,1720945854989,-500.0,0.00013753,2]
[332059977,1720945854999,-500.0,0.00013753,2]
[332059978,1720945855009,-552.27,0.00013753,2]
[332059979,1720945855018,-500.0,0.00013753,2]
[332059980,1720945855027,-581.05,0.00013753,2]
[332059981,1720945855038,-500.0,0.00013753,2]
[332059982,1720945855048,-500.0,0.00013753,2]
[332059983,1720945855057,-918.15,0.00013753,2]
[332059984,1720945855067,-636.06,0.00013753,2]
[332059985,1720945855077,-602.33,0.00013753,2]
[332059986,1720945855087,-523.76,0.00013753,2]
[332059987,1720945855096,-500.0,0.00013753,2]
[332059988,1720945855105,-918.07,0.00013753,2]
[332059989,1720945855115,-500.0,0.00013753,2]
[332059990,1720945855129,-502.32,0.00013753,2]
[332059991,1720945855139,-888.97,0.00013753,2]
[332059992,1720945855149,-500.0,0.00013753,2]
[332059993,1720945855159,-500.0,0.00013753,2]
[332059994,1720945855169,-888.88,0.00013753,2]
[332059995,1720945855178,-1859.76,0.00013753,2]
[332059996,1720945855188,-500.0,0.00013753,2]
[332059997,1720945855199,-1320.12,0.00013753,2]
[332059998,1720945855209,-500.0,0.00013753,2]
[332059999,1720945855220,-500.0,0.00013753,2]
[332060000,1720945855231,-500.0,0.00013753,2]
[332060001,1720945855241,-500.0,0.00013753,2]
[332060002,1720945855251,-500.0,0.00013753,2]
[332060003,1720945855261,-1381.47,0.00013753,2]
[332060004,1720945855270,-500.0,0.00013753,2]
[332060005,1720945855280,-500.0,0.00013753,2]
[332060006,1720945855290,-500.0,0.00013753,2]
[332060007,1720945855300,-535.84,0.00013753,2]
[332060008,1720945855310,-634.79,0.00013753,2]
[332060009,1720945855318,-251.21724831,0.00013753,2]
[332060010,1720945855332,-248.78275169,0.00013753,2]
[332060011,1720945855341,-37.8785127,0.00013753,2]
[332060012,1720945855359,-472.6714873,0.00013753,2]
[332060013,1720945855368,-132.95845762,0.00013753,2]
[332060014,1720945855443,-440.80611874,0.00013331,2]
[332060015,1720945855452,-367.04154238,0.00013753,2]
[332060016,1720945855462,-769.19008996,0.00013753,2]
[332060017,1720945855473,-84.36991004,0.00013753,2]
[332060018,1720945855482,-500.0,0.00013753,2]
[332060019,1720945855492,-221.58008997,0.00013753,2]
[332060020,1720945898364,330.61,0.00010922,2]
[332060023,1720946163180,400.0,0.00026986,120]
[332060037,1720946376470,189.25661279,0.00010998,2]
[332060040,1720946485103,314.07,0.00010427,2]
[332060041,1720946513770,218.13,0.0001,2]
[332060043,1720946527741,800.0,0.00026986,120]
[332060064,1720946942916,271.40750312,5.794e-05,2]
[332060074,1720947016837,298.41273176,7.023e-05,2]
[332060075,1720947023451,210.18261467,0.0001,2]
[332060083,1720947031814,-619.65174307,0.00011097,2]
[332060084,1720947031825,-2522.06617273,0.00011097,2]
[332060085,1720947031837,-6044.68050849,0.00011097,2]
[332060086,1720947031846,-300.0,0.00011097,2]
[332060087,1720947031855,-156.35620433,0.00011098,2]
[332060089,1720947031865,-195.15612805,0.00011098,2]
[332060091,1720947031874,-688.73272497,0.00011098,2]
[332060094,1720947031893,-29.49698686,0.00011098,2]
[332060096,1720947031903,-173.88,0.00011488,2]
[332060099,1720947031915,-420.0,0.00012193,2]
[332060101,1720947031927,-188.01,0.0001222,2]
[332060103,1720947031937,-250.0,0.00012301,2]
[332060105,1720947031947,-499.99,0.00012301,2]
[332060107,1720947031959,-238.98,0.00012308,2]
[332060108,1720947031971,-250.0,0.00012308,2]
[332060110,1720947031983,-150.0,0.00012432,2]
[332060112,1720947031992,-1205.67692047,0.00012433,2]
[332060114,1720947032003,-8896.76130748,0.00012433,2]
[332060115,1720947032017,-4130.4738439,0.00012433,2]
[332060116,1720947032029,-2748.05976961,0.00012433,2]
[332060117,1720947032042,-567.12177962,0.00012433,2]
[332060118,1720947032061,-3064.60664569,0.00012433,2]
[332060119,1720947032072,-934.57285382,0.00012433,2]
[332060120,1720947032112,-2332.72687941,0.00012433,2]
[332060121,1720947032122,-3532.72357346,0.00012433,2]
[332060122,1720947032133,-363.76455997,0.00012433,2]
[332060123,1720947032155,-2287.74841182,0.00012433,2]
[332060124,1720947032167,-257.23433876,0.00012433,2]
[332060125,1720947032178,-747.70566124,0.00012433,2]
[332060126,1720947032190,-1666.21666469,0.00012433,2]
[332060127,1720947032205,-741.8811006,0.00012433,2]
[332060128,1720947032217,-1266.06600625,0.00012433,2]
[332060129,1720947032230,-4095.7146,0.00012433,2]
[332060130,1720947032338,-1940.72508321,0.00012433,2]
[332060131,1720947032348,-150.99,0.00012505,2]
[332060132,1720947032357,-314.07,0.0001269,2]
[332060133,1720947032367,-887.19,0.00012726,2]
[332060134,1720947032377,-200.09,0.00012862,2]
[332060135,1720947032386,-652.5081,0.000129,2]
[332060136,1720947032396,-259.1092,0.000129,2]
[332060137,1720947032406,-1250.0,0.00013,2]
[332060138,1720947032416,-3003.648505,0.00013,2]
[332060139,1720947032426,-553182.19,0.00013178,6]
[332060140,1720947032436,-346.99,0.00013178,2]
[332060141,1720947032447,-206.0,0.0001323,2]
[332060142,1720947032458,-1040.087017,0.00013333,2]
[332060143,1720947032470,-579.531551,0.00013333,2]
[332060144,1720947032481,-902.176236,0.00013333,2]
[332060145,1720947032491,-1080.649684,0.00013333,2]
[332060146,1720947032500,-902.176236,0.00013333,2]
[332060147,1720947032509,-579.531552,0.00013333,2]
[332060148,1720947032518,-146.4893517,0.00013333,2]
[332060149,1720947032530,-433.0422003,0.00013333,2]
[332060150,1720947032540,-395.9577997,0.00013333,2]
[332060151,1720947032554,-506.2184363,0.00013333,2]
[332060152,1720947032564,-278.12507456,0.00013333,2]